[Event "Titled Tuesday Blitz March 22 Early 2022"]
[White "Popadic, Dragan"]
[Black "Agasarov, Benik"]
[WhiteFideId "913650"]
[BlackFideId "13314823"]
[WhiteElo "2222"]
[BlackElo "2536"]
[Result "1-0"]
[Round "11"]
[TimeControl "180+1"]
[Date "2022.03.22"]
[WhiteClock "0:00:20"]
[BlackClock "0:00:09"]

1. e4 {[%clk 0:03:00]}  c5 {[%clk 0:02:58]} 2. Nc3 {[%clk 0:03:00]}  e6 {[%clk 0:02:58]} 3. d3 {[%clk 0:02:59]}  Nc6 {[%clk 0:02:57]} 4. g4 {[%clk 0:02:59]}  d5 {[%clk 0:02:51]} 5. Bg2 {[%clk 0:02:59]}  d4 {[%clk 0:02:48]} 6. Nce2 {[%clk 0:02:58]}  e5 {[%clk 0:02:43]} 7. Ng3 {[%clk 0:02:58]}  Be7 {[%clk 0:02:39]} 8. Nh3 {[%clk 0:02:56]}  g6 {[%clk 0:02:36]} 9. f4 {[%clk 0:02:52]}  Bh4 {[%clk 0:02:28]} 10. O-O {[%clk 0:02:51]}  Nf6 {[%clk 0:02:25]} 11. f5 {[%clk 0:02:51]}  Bd7 {[%clk 0:02:00]} 12. g5 {[%clk 0:02:39]}  Ng8 {[%clk 0:01:43]} 13. Qg4 {[%clk 0:02:29]}  Bxg3 {[%clk 0:01:42]} 14. Qxg3 {[%clk 0:02:29]}  Nge7 {[%clk 0:01:35]} 15. f6 {[%clk 0:02:25]}  Nc8 {[%clk 0:01:29]} 16. Nf2 {[%clk 0:02:25]}  Nd6 {[%clk 0:01:28]} 17. Bh3 {[%clk 0:02:24]}  Bxh3 {[%clk 0:01:26]} 18. Qxh3 {[%clk 0:02:23]}  Qd7 {[%clk 0:01:26]} 19. Ng4 {[%clk 0:02:16]}  O-O-O {[%clk 0:01:22]} 20. Bd2 {[%clk 0:02:15]}  Rdg8 {[%clk 0:01:08]} 21. Qg3 {[%clk 0:02:14]}  Qe6 {[%clk 0:01:03]} 22. a3 {[%clk 0:02:13]}  b6 {[%clk 0:00:54]} 23. b4 {[%clk 0:02:13]}  c4 {[%clk 0:00:53]} 24. Rab1 {[%clk 0:02:04]}  c3 {[%clk 0:00:48]} 25. Bc1 {[%clk 0:02:04]}  Re8 {[%clk 0:00:39]} 26. Rb3 {[%clk 0:01:52]}  Kb7 {[%clk 0:00:29]} 27. a4 {[%clk 0:01:52]}  Qd7 {[%clk 0:00:17]} 28. Ba3 {[%clk 0:01:44]}  Re6 {[%clk 0:00:14]} 29. b5 {[%clk 0:01:37]}  Na5 {[%clk 0:00:13]} 30. Rbb1 {[%clk 0:01:35]}  Rhe8 {[%clk 0:00:13]} 31. Bb4 {[%clk 0:01:34]}  Nac4 {[%clk 0:00:09]} 32. dxc4 {[%clk 0:01:32]}  Nxc4 {[%clk 0:00:08]} 33. Rbd1 {[%clk 0:01:22]}  Nd2 {[%clk 0:00:07]} 34. Rxd2 {[%clk 0:01:22]}  cxd2 {[%clk 0:00:08]} 35. Bxd2 {[%clk 0:01:22]}  Qc7 {[%clk 0:00:09]} 36. Rc1 {[%clk 0:01:14]}  Qc4 {[%clk 0:00:07]} 37. a5 {[%clk 0:01:12]}  Qxb5 {[%clk 0:00:04]} 38. axb6 {[%clk 0:01:11]}  Rxb6 {[%clk 0:00:04]} 39. Qe1 {[%clk 0:01:04]}  Qc5 {[%clk 0:00:04]} 40. Nf2 {[%clk 0:01:03]}  Rc8 {[%clk 0:00:02]} 41. Nd3 {[%clk 0:01:02]}  Qd6 {[%clk 0:00:02]} 42. Qg3 {[%clk 0:00:57]}  Rb5 {[%clk 0:00:02]} 43. Qe1 {[%clk 0:00:55]}  Qb6 {[%clk 0:00:03]} 44. Kf2 {[%clk 0:00:52]}  Re8 {[%clk 0:00:03]} 45. Kg3 {[%clk 0:00:52]}  Qc6 {[%clk 0:00:02]} 46. Qe2 {[%clk 0:00:51]}  Qc4 {[%clk 0:00:02]} 47. Qf1 {[%clk 0:00:47]}  Rc8 {[%clk 0:00:03]} 48. Qd1 {[%clk 0:00:46]}  Rb6 {[%clk 0:00:03]} 49. Be1 {[%clk 0:00:46]}  Qc6 {[%clk 0:00:02]} 50. Kg2 {[%clk 0:00:45]}  Qxe4+ {[%clk 0:00:02]} 51. Qf3 {[%clk 0:00:43]}  Qxf3+ {[%clk 0:00:03]} 52. Kxf3 {[%clk 0:00:43]}  Re8 {[%clk 0:00:03]} 53. Ke4 {[%clk 0:00:42]}  Rb5 {[%clk 0:00:03]} 54. Bg3 {[%clk 0:00:42]}  Re6 {[%clk 0:00:01]} 55. Bxe5 {[%clk 0:00:41]}  a5 {[%clk 0:00:02]} 56. Kxd4 {[%clk 0:00:41]}  Rc6 {[%clk 0:00:02]} 57. h4 {[%clk 0:00:38]}  a4 {[%clk 0:00:03]} 58. h5 {[%clk 0:00:37]}  a3 {[%clk 0:00:02]} 59. hxg6 {[%clk 0:00:37]}  hxg6 {[%clk 0:00:02]} 60. Ra1 {[%clk 0:00:37]}  Ra5 {[%clk 0:00:02]} 61. Ra2 {[%clk 0:00:37]}  Ra4+ {[%clk 0:00:02]} 62. Ke3 {[%clk 0:00:37]}  Rcc4 {[%clk 0:00:01]} 63. Bf4 {[%clk 0:00:35]}  Kc6 {[%clk 0:00:02]} 64. Ne5+ {[%clk 0:00:34]}  Kd5 {[%clk 0:00:02]} 65. Nxc4 {[%clk 0:00:34]}  Kxc4 {[%clk 0:00:03]} 66. Kd2 {[%clk 0:00:33]}  Kb5 {[%clk 0:00:03]} 67. Be3 {[%clk 0:00:33]}  Ra8 {[%clk 0:00:03]} 68. c3 {[%clk 0:00:33]}  Ka4 {[%clk 0:00:03]} 69. Bd4 {[%clk 0:00:32]}  Kb3 {[%clk 0:00:03]} 70. Ra1 {[%clk 0:00:33]}  Kb2 {[%clk 0:00:03]} 71. Re1 {[%clk 0:00:32]}  a2 {[%clk 0:00:03]} 72. c4+ {[%clk 0:00:32]}  Kb3 {[%clk 0:00:04]} 73. Kd3 {[%clk 0:00:32]}  Rc8 {[%clk 0:00:02]} 74. Re7 {[%clk 0:00:32]}  Rxc4 {[%clk 0:00:01]} 75. Ra7 {[%clk 0:00:28]}  Rb4 {[%clk 0:00:02]} 76. Be5 {[%clk 0:00:27]}  Rb5 {[%clk 0:00:02]} 77. Ke4 {[%clk 0:00:27]}  Rb4+ {[%clk 0:00:02]} 78. Kd5 {[%clk 0:00:27]}  Rb5+ {[%clk 0:00:03]} 79. Kd6 {[%clk 0:00:27]}  Rb6+ {[%clk 0:00:03]} 80. Ke7 {[%clk 0:00:26]}  Re6+ {[%clk 0:00:04]} 81. Kxf7 {[%clk 0:00:26]}  Rxe5 {[%clk 0:00:05]} 82. Kxg6 {[%clk 0:00:26]}  Kb2 {[%clk 0:00:05]} 83. f7 {[%clk 0:00:26]}  Re6+ {[%clk 0:00:06]} 84. Kg7 {[%clk 0:00:26]}  Re7 {[%clk 0:00:06]} 85. Rxa2+ {[%clk 0:00:25]}  Kxa2 {[%clk 0:00:06]} 86. g6 {[%clk 0:00:26]}  Kb3 {[%clk 0:00:05]} 87. Kg8 {[%clk 0:00:26]}  Re6 {[%clk 0:00:06]} 88. g7 {[%clk 0:00:26]}  Ra6 {[%clk 0:00:05]} 89. f8=Q {[%clk 0:00:26]}  Kc3 {[%clk 0:00:05]} 90. Qc8+ {[%clk 0:00:25]}  Rc6 {[%clk 0:00:05]} 91. Qxc6+ {[%clk 0:00:24]}  Kd4 {[%clk 0:00:05]} 92. Kf7 {[%clk 0:00:24]}  Ke5 {[%clk 0:00:06]} 93. g8=Q {[%clk 0:00:24]}  Kf5 {[%clk 0:00:07]} 94. Qgg6+ {[%clk 0:00:23]}  Kf4 {[%clk 0:00:07]} 95. Qcf6+ {[%clk 0:00:22]}  Ke3 {[%clk 0:00:07]} 96. Qg3+ {[%clk 0:00:22]}  Ke4 {[%clk 0:00:07]} 97. Qff4+ {[%clk 0:00:21]}  Kd5 {[%clk 0:00:08]} 98. Qd3+ {[%clk 0:00:21]}  Kc6 {[%clk 0:00:08]} 99. Qfc4+ {[%clk 0:00:20]}  Kb7 {[%clk 0:00:08]} 100. Qdb3+ {[%clk 0:00:20]}  Ka7 {[%clk 0:00:09]} 101. Qca4# {[%clk 0:00:20]} 1-0


[Site "https://www.chess.com"]

[Event "Titled Tuesday Blitz March 22 Early 2022"]
[White "Reprintsev, Alexander"]
[Black "Khamzin, Olzhas"]
[WhiteFideId "14100541"]
[BlackFideId "13701690"]
[WhiteElo "2108"]
[BlackElo "2194"]
[Result "1-0"]
[Round "11"]
[TimeControl "180+1"]
[Date "2022.03.22"]
[WhiteClock "0:00:12"]
[BlackClock "0:00:29"]

1. e4 {[%clk 0:02:41]}  c5 {[%clk 0:03:00]} 2. b3 {[%clk 0:02:40]}  d6 {[%clk 0:03:00]} 3. Bb2 {[%clk 0:02:39]}  e5 {[%clk 0:03:00]} 4. f4 {[%clk 0:02:39]}  Nc6 {[%clk 0:03:01]} 5. Qf3 {[%clk 0:02:39]}  Nf6 {[%clk 0:03:01]} 6. Bb5 {[%clk 0:02:38]}  Bd7 {[%clk 0:02:47]} 7. Ne2 {[%clk 0:02:37]}  Nd4 {[%clk 0:02:45]} 8. Nxd4 {[%clk 0:02:36]}  cxd4 {[%clk 0:02:46]} 9. Bxd7+ {[%clk 0:02:37]}  Nxd7 {[%clk 0:02:45]} 10. c3 {[%clk 0:02:38]}  dxc3 {[%clk 0:02:38]} 11. Nxc3 {[%clk 0:02:38]}  Be7 {[%clk 0:02:35]} 12. O-O-O {[%clk 0:02:36]}  Rc8 {[%clk 0:02:34]} 13. Kb1 {[%clk 0:02:35]}  O-O {[%clk 0:02:34]} 14. d4 {[%clk 0:02:21]}  exd4 {[%clk 0:02:35]} 15. Rxd4 {[%clk 0:02:21]}  Re8 {[%clk 0:02:22]} 16. Rhd1 {[%clk 0:02:18]}  Qa5 {[%clk 0:02:20]} 17. Rd5 {[%clk 0:02:08]}  Qa6 {[%clk 0:02:15]} 18. g4 {[%clk 0:02:02]}  Nf6 {[%clk 0:02:14]} 19. R5d3 {[%clk 0:01:56]}  Bf8 {[%clk 0:02:15]} 20. g5 {[%clk 0:01:54]}  Nd7 {[%clk 0:02:15]} 21. h4 {[%clk 0:01:43]}  Nc5 {[%clk 0:02:15]} 22. Rd4 {[%clk 0:01:43]}  Ne6 {[%clk 0:02:15]} 23. Rd5 {[%clk 0:01:40]}  Rc6 {[%clk 0:02:15]} 24. h5 {[%clk 0:01:39]}  Rec8 {[%clk 0:02:15]} 25. h6 {[%clk 0:01:38]}  Nc7 {[%clk 0:02:10]} 26. R5d3 {[%clk 0:01:36]}  Nb5 {[%clk 0:02:10]} 27. Nxb5 {[%clk 0:01:25]}  Qxb5 {[%clk 0:02:11]} 28. hxg7 {[%clk 0:01:25]}  Bxg7 {[%clk 0:02:10]} 29. Bxg7 {[%clk 0:01:23]}  Kxg7 {[%clk 0:02:11]} 30. R3d2 {[%clk 0:01:07]}  Kg8 {[%clk 0:02:04]} 31. Qd3 {[%clk 0:01:03]}  Qb4 {[%clk 0:02:01]} 32. Qd4 {[%clk 0:00:59]}  Qa3 {[%clk 0:01:56]} 33. Qb2 {[%clk 0:00:59]}  Qb4 {[%clk 0:01:55]} 34. Rd4 {[%clk 0:00:55]}  Qb6 {[%clk 0:01:51]} 35. f5 {[%clk 0:00:53]}  a5 {[%clk 0:01:40]} 36. R4d2 {[%clk 0:00:45]}  Qb4 {[%clk 0:01:36]} 37. Rd4 {[%clk 0:00:42]}  Qb5 {[%clk 0:01:30]} 38. Qd2 {[%clk 0:00:31]}  Qe5 {[%clk 0:01:23]} 39. Qe3 {[%clk 0:00:21]}  Rc3 {[%clk 0:01:21]} 40. R4d3 {[%clk 0:00:18]}  a4 {[%clk 0:01:16]} 41. bxa4 {[%clk 0:00:16]}  Qa5 {[%clk 0:01:12]} 42. Rxc3 {[%clk 0:00:14]}  Rxc3 {[%clk 0:01:12]} 43. Qd4 {[%clk 0:00:14]}  Qc7 {[%clk 0:01:00]} 44. g6 {[%clk 0:00:13]}  hxg6 {[%clk 0:01:00]} 45. fxg6 {[%clk 0:00:13]}  fxg6 {[%clk 0:01:00]} 46. Rh1 {[%clk 0:00:14]}  Qg7 {[%clk 0:00:41]} 47. Qd5+ {[%clk 0:00:13]}  Kf8 {[%clk 0:00:41]} 48. Qxd6+ {[%clk 0:00:14]}  Ke8 {[%clk 0:00:40]} 49. Qb8+ {[%clk 0:00:09]}  Kf7 {[%clk 0:00:33]} 50. Qxb7+ {[%clk 0:00:10]}  Kg8 {[%clk 0:00:30]} 51. Qb8+ {[%clk 0:00:09]}  Kf7 {[%clk 0:00:28]} 52. Rf1+ {[%clk 0:00:09]}  Ke6 {[%clk 0:00:28]} 53. Qb6+ {[%clk 0:00:08]}  Ke5 {[%clk 0:00:26]} 54. Qb2 {[%clk 0:00:08]}  Kxe4 {[%clk 0:00:22]} 55. Qe2+ {[%clk 0:00:07]}  Re3 {[%clk 0:00:23]} 56. Qc4+ {[%clk 0:00:07]}  Ke5 {[%clk 0:00:23]} 57. Qc5+ {[%clk 0:00:07]}  Ke4 {[%clk 0:00:22]} 58. Qc6+ {[%clk 0:00:06]}  Ke5 {[%clk 0:00:22]} 59. Qb5+ {[%clk 0:00:06]}  Ke4 {[%clk 0:00:22]} 60. Qb4+ {[%clk 0:00:06]}  Qd4 {[%clk 0:00:22]} 61. Rf4+ {[%clk 0:00:05]}  Kxf4 {[%clk 0:00:22]} 62. Qxd4+ {[%clk 0:00:06]}  Kf3 {[%clk 0:00:23]} 63. Qf6+ {[%clk 0:00:06]}  Ke2 {[%clk 0:00:23]} 64. Qxg6 {[%clk 0:00:07]}  Kd2 {[%clk 0:00:23]} 65. Kb2 {[%clk 0:00:07]}  Re2 {[%clk 0:00:22]} 66. Qd6+ {[%clk 0:00:07]}  Ke3+ {[%clk 0:00:23]} 67. Kb3 {[%clk 0:00:06]}  Rg2 {[%clk 0:00:23]} 68. Qe5+ {[%clk 0:00:05]}  Kd3 {[%clk 0:00:23]} 69. Qd5+ {[%clk 0:00:05]}  Ke3 {[%clk 0:00:24]} 70. Qxg2 {[%clk 0:00:06]}  Kd3 {[%clk 0:00:24]} 71. Qc2+ {[%clk 0:00:06]}  Kd4 {[%clk 0:00:25]} 72. a5 {[%clk 0:00:07]}  Ke5 {[%clk 0:00:26]} 73. a6 {[%clk 0:00:08]}  Kd6 {[%clk 0:00:26]} 74. a7 {[%clk 0:00:09]}  Ke7 {[%clk 0:00:27]} 75. a8=Q {[%clk 0:00:09]}  Kd6 {[%clk 0:00:28]} 76. Qa6+ {[%clk 0:00:10]}  Ke5 {[%clk 0:00:29]} 77. Qc5+ {[%clk 0:00:10]}  Kf4 {[%clk 0:00:29]} 78. Qac4+ {[%clk 0:00:11]}  Kf3 {[%clk 0:00:29]} 79. Qc2 {[%clk 0:00:12]}  Kg3 {[%clk 0:00:29]} 80. Q5f5 {[%clk 0:00:12]} 1-0


[Site "https://www.chess.com"]

[Event "Titled Tuesday Blitz March 22 Early 2022"]
[White "Ruge, Edison"]
[Black "Altman, Joshua"]
[WhiteFideId "4401000"]
[BlackFideId "426210"]
[WhiteElo "2175"]
[BlackElo "1945"]
[Result "0-1"]
[Round "11"]
[TimeControl "180+1"]
[Date "2022.03.22"]
[WhiteClock "0:00:03"]
[BlackClock "0:00:53"]

1. e4 {[%clk 0:02:59]}  e6 {[%clk 0:02:59]} 2. d3 {[%clk 0:02:58]}  d5 {[%clk 0:03:00]} 3. Nd2 {[%clk 0:02:59]}  Nf6 {[%clk 0:03:00]} 4. Ngf3 {[%clk 0:02:59]}  c5 {[%clk 0:02:59]} 5. g3 {[%clk 0:02:59]}  Nc6 {[%clk 0:03:00]} 6. Bg2 {[%clk 0:03:00]}  Be7 {[%clk 0:03:00]} 7. O-O {[%clk 0:03:00]}  Qc7 {[%clk 0:03:01]} 8. Re1 {[%clk 0:03:00]}  b6 {[%clk 0:03:01]} 9. c3 {[%clk 0:02:57]}  Bb7 {[%clk 0:03:00]} 10. h4 {[%clk 0:02:56]}  h6 {[%clk 0:03:00]} 11. Nf1 {[%clk 0:02:48]}  O-O-O {[%clk 0:02:58]} 12. Qc2 {[%clk 0:02:48]}  Rhg8 {[%clk 0:02:56]} 13. exd5 {[%clk 0:02:45]}  Nxd5 {[%clk 0:02:55]} 14. Ne3 {[%clk 0:02:42]}  g5 {[%clk 0:02:47]} 15. hxg5 {[%clk 0:02:41]}  hxg5 {[%clk 0:02:47]} 16. Nxd5 {[%clk 0:02:34]}  exd5 {[%clk 0:02:48]} 17. d4 {[%clk 0:02:15]}  Kb8 {[%clk 0:02:38]} 18. dxc5 {[%clk 0:02:05]}  bxc5 {[%clk 0:02:38]} 19. Qf5 {[%clk 0:01:55]}  f6 {[%clk 0:02:32]} 20. Nh2 {[%clk 0:01:45]}  Bc8 {[%clk 0:02:30]} 21. Qc2 {[%clk 0:01:38]}  Bd6 {[%clk 0:02:23]} 22. Nf1 {[%clk 0:01:29]}  Ne7 {[%clk 0:02:13]} 23. a4 {[%clk 0:01:10]}  Rge8 {[%clk 0:02:01]} 24. Ra3 {[%clk 0:01:10]}  Bf5 {[%clk 0:02:01]} 25. Rb3+ {[%clk 0:01:08]}  Kc8 {[%clk 0:01:53]} 26. Qd1 {[%clk 0:01:02]}  c4 {[%clk 0:01:50]} 27. Rb5 {[%clk 0:01:01]}  Bc5 {[%clk 0:01:39]} 28. Be3 {[%clk 0:00:57]}  Bxe3 {[%clk 0:01:36]} 29. Nxe3 {[%clk 0:00:57]}  Bd3 {[%clk 0:01:36]} 30. Qg4+ {[%clk 0:00:45]}  f5 {[%clk 0:01:34]} 31. Qd4 {[%clk 0:00:40]}  Nc6 {[%clk 0:01:32]} 32. Qc5 {[%clk 0:00:35]}  f4 {[%clk 0:01:29]} 33. Bh3+ {[%clk 0:00:31]}  Rd7 {[%clk 0:01:22]} 34. Bxd7+ {[%clk 0:00:31]}  Qxd7 {[%clk 0:01:22]} 35. Qxd5 {[%clk 0:00:09]}  Qxd5 {[%clk 0:01:16]} 36. Rxd5 {[%clk 0:00:08]}  fxe3 {[%clk 0:01:16]} 37. Rxe3 {[%clk 0:00:08]}  Rxe3 {[%clk 0:01:04]} 38. fxe3 {[%clk 0:00:08]}  g4 {[%clk 0:01:05]} 39. e4 {[%clk 0:00:07]}  Bxe4 {[%clk 0:01:03]} 40. Rg5 {[%clk 0:00:04]}  Bf3 {[%clk 0:01:03]} 41. Kf2 {[%clk 0:00:05]}  Kc7 {[%clk 0:01:02]} 42. Ke3 {[%clk 0:00:05]}  Kb6 {[%clk 0:00:55]} 43. Kf4 {[%clk 0:00:03]}  Nd8 {[%clk 0:00:53]} 0-1


[Site "https://www.chess.com"]

[Event "Titled Tuesday Blitz March 22 Early 2022"]
[White "Sarana, Alexey"]
[Black "Chigaev, Maksim"]
[WhiteFideId "24133795"]
[BlackFideId "4108116"]
[WhiteElo "2666"]
[BlackElo "2502"]
[Result "1-0"]
[Round "11"]
[TimeControl "180+1"]
[Date "2022.03.22"]
[WhiteClock "0:00:09"]
[BlackClock "0:00:01"]

1. d4 {[%clk 0:03:00]}  Nf6 {[%clk 0:03:00]} 2. c4 {[%clk 0:03:01]}  g6 {[%clk 0:03:00]} 3. Nc3 {[%clk 0:03:02]}  d5 {[%clk 0:03:01]} 4. cxd5 {[%clk 0:03:03]}  Nxd5 {[%clk 0:03:01]} 5. e4 {[%clk 0:03:03]}  Nxc3 {[%clk 0:03:02]} 6. bxc3 {[%clk 0:03:04]}  Bg7 {[%clk 0:03:03]} 7. Bc4 {[%clk 0:03:05]}  c5 {[%clk 0:03:02]} 8. Ne2 {[%clk 0:03:05]}  O-O {[%clk 0:03:01]} 9. Be3 {[%clk 0:03:06]}  Nc6 {[%clk 0:02:58]} 10. Rc1 {[%clk 0:03:06]}  b5 {[%clk 0:02:57]} 11. Bd5 {[%clk 0:03:05]}  Qc7 {[%clk 0:02:53]} 12. O-O {[%clk 0:03:03]}  e6 {[%clk 0:02:36]} 13. Bxc6 {[%clk 0:02:53]}  Qxc6 {[%clk 0:02:37]} 14. d5 {[%clk 0:02:54]}  exd5 {[%clk 0:02:36]} 15. exd5 {[%clk 0:02:55]}  Qd6 {[%clk 0:02:19]} 16. c4 {[%clk 0:02:55]}  bxc4 {[%clk 0:01:53]} 17. Rxc4 {[%clk 0:02:53]}  Bb7 {[%clk 0:01:45]} 18. Rxc5 {[%clk 0:02:47]}  Rfe8 {[%clk 0:01:41]} 19. Ra5 {[%clk 0:02:36]}  Rad8 {[%clk 0:01:25]} 20. Qd2 {[%clk 0:02:34]}  Re5 {[%clk 0:01:03]} 21. Rd1 {[%clk 0:02:33]}  Rxd5 {[%clk 0:00:57]} 22. Rxd5 {[%clk 0:02:03]}  Qxd5 {[%clk 0:00:56]} 23. Qxd5 {[%clk 0:02:00]}  Rxd5 {[%clk 0:00:57]} 24. Rb1 {[%clk 0:02:00]}  a5 {[%clk 0:00:38]} 25. h4 {[%clk 0:01:48]}  Rd7 {[%clk 0:00:38]} 26. Rb5 {[%clk 0:01:49]}  a4 {[%clk 0:00:33]} 27. Ra5 {[%clk 0:01:48]}  Bc6 {[%clk 0:00:27]} 28. Rc5 {[%clk 0:01:45]}  Rd1+ {[%clk 0:00:22]} 29. Kh2 {[%clk 0:01:44]}  Bd7 {[%clk 0:00:22]} 30. h5 {[%clk 0:01:26]}  Bf8 {[%clk 0:00:21]} 31. Ra5 {[%clk 0:01:24]}  h6 {[%clk 0:00:14]} 32. hxg6 {[%clk 0:01:23]}  fxg6 {[%clk 0:00:15]} 33. Nc3 {[%clk 0:01:19]}  Rd3 {[%clk 0:00:07]} 34. Ne4 {[%clk 0:01:16]}  Bc6 {[%clk 0:00:05]} 35. Nf6+ {[%clk 0:01:04]}  Kf7 {[%clk 0:00:05]} 36. Ng4 {[%clk 0:00:16]}  Bd6+ {[%clk 0:00:05]} 37. Kh3 {[%clk 0:00:17]}  Bd7 {[%clk 0:00:03]} 38. Ra7 {[%clk 0:00:17]}  Ke8 {[%clk 0:00:01]} 39. Ra8+ {[%clk 0:00:12]}  Ke7 {[%clk 0:00:02]} 40. Kh4 {[%clk 0:00:10]}  h5 {[%clk 0:00:01]} 41. Nh6 {[%clk 0:00:09]} 1-0


[Site "https://www.chess.com"]

[Event "Titled Tuesday Blitz March 22 Early 2022"]
[White "Schrik, Rachid"]
[Black "Pires, Marcos Vinicius Torsani"]
[WhiteFideId "1009818"]
[BlackFideId "2118939"]
[WhiteElo "2070"]
[BlackElo "2273"]
[Result "0-1"]
[Round "11"]
[TimeControl "180+1"]
[Date "2022.03.22"]
[WhiteClock "0:00:02"]
[BlackClock "0:00:07"]

1. d4 {[%clk 0:02:59]}  Nf6 {[%clk 0:02:59]} 2. c4 {[%clk 0:03:00]}  g6 {[%clk 0:02:59]} 3. Nc3 {[%clk 0:03:00]}  Bg7 {[%clk 0:02:59]} 4. e4 {[%clk 0:03:00]}  d6 {[%clk 0:02:59]} 5. f3 {[%clk 0:03:01]}  O-O {[%clk 0:02:59]} 6. Bg5 {[%clk 0:03:01]}  c5 {[%clk 0:02:59]} 7. d5 {[%clk 0:03:02]}  e6 {[%clk 0:02:59]} 8. Qd2 {[%clk 0:03:02]}  exd5 {[%clk 0:02:59]} 9. cxd5 {[%clk 0:03:03]}  a6 {[%clk 0:02:58]} 10. a4 {[%clk 0:03:03]}  Nbd7 {[%clk 0:02:54]} 11. Nh3 {[%clk 0:03:03]}  Ne5 {[%clk 0:02:48]} 12. Nf2 {[%clk 0:03:03]}  Qa5 {[%clk 0:02:46]} 13. Ra3 {[%clk 0:02:58]}  Re8 {[%clk 0:02:40]} 14. Be2 {[%clk 0:02:58]}  h5 {[%clk 0:02:22]} 15. O-O {[%clk 0:02:53]}  c4 {[%clk 0:02:07]} 16. f4 {[%clk 0:02:33]}  Neg4 {[%clk 0:01:59]} 17. Nxg4 {[%clk 0:01:57]}  Nxg4 {[%clk 0:01:49]} 18. Bxg4 {[%clk 0:01:45]}  hxg4 {[%clk 0:01:39]} 19. f5 {[%clk 0:01:01]}  gxf5 {[%clk 0:01:36]} 20. exf5 {[%clk 0:01:00]}  Qc5+ {[%clk 0:01:36]} 21. Kh1 {[%clk 0:00:58]}  Bd4 {[%clk 0:01:10]} 22. Qf4 {[%clk 0:00:41]}  Be3 {[%clk 0:00:17]} 23. Qxg4 {[%clk 0:00:40]}  Qd4 {[%clk 0:00:17]} 24. Qh5 {[%clk 0:00:23]}  Qg7 {[%clk 0:00:13]} 25. Bxe3 {[%clk 0:00:20]}  Rxe3 {[%clk 0:00:14]} 26. f6 {[%clk 0:00:20]}  Qg6 {[%clk 0:00:14]} 27. Qh4 {[%clk 0:00:17]}  Bf5 {[%clk 0:00:10]} 28. Raa1 {[%clk 0:00:17]}  Rae8 {[%clk 0:00:09]} 29. h3 {[%clk 0:00:12]}  b5 {[%clk 0:00:09]} 30. Rxf5 {[%clk 0:00:08]}  Qxf5 {[%clk 0:00:07]} 31. Qh6 {[%clk 0:00:08]}  Qg6 {[%clk 0:00:07]} 32. Qh4 {[%clk 0:00:07]}  b4 {[%clk 0:00:08]} 33. Na2 {[%clk 0:00:05]}  Re2 {[%clk 0:00:08]} 34. Rg1 {[%clk 0:00:04]}  R8e5 {[%clk 0:00:08]} 35. Nc1 {[%clk 0:00:02]}  Rxb2 {[%clk 0:00:08]} 36. Qf2 {[%clk 0:00:02]}  Rxf2 {[%clk 0:00:07]} 0-1


[Site "https://www.chess.com"]

[Event "Titled Tuesday Blitz March 22 Early 2022"]
[White "Shtyka, Sergey"]
[Black "Petrova, Irina"]
[WhiteFideId "4138465"]
[BlackFideId "14124122"]
[WhiteElo "2014"]
[BlackElo "1993"]
[Result "0-1"]
[Round "11"]
[TimeControl "180+1"]
[Date "2022.03.22"]
[WhiteClock "0:00:31"]
[BlackClock "0:01:04"]

1. e4 {[%clk 0:02:32]}  d6 {[%clk 0:03:00]} 2. d4 {[%clk 0:02:29]}  Nf6 {[%clk 0:03:01]} 3. Nc3 {[%clk 0:02:28]}  e5 {[%clk 0:03:00]} 4. dxe5 {[%clk 0:02:28]}  dxe5 {[%clk 0:03:01]} 5. Qxd8+ {[%clk 0:02:28]}  Kxd8 {[%clk 0:03:02]} 6. Bc4 {[%clk 0:02:27]}  Ke8 {[%clk 0:03:00]} 7. f4 {[%clk 0:02:25]}  Bb4 {[%clk 0:02:55]} 8. Bd2 {[%clk 0:02:21]}  exf4 {[%clk 0:02:51]} 9. a3 {[%clk 0:02:11]}  Bxc3 {[%clk 0:02:40]} 10. Bxc3 {[%clk 0:02:10]}  Nxe4 {[%clk 0:02:40]} 11. Bxg7 {[%clk 0:02:08]}  Rg8 {[%clk 0:02:40]} 12. Be5 {[%clk 0:02:04]}  Be6 {[%clk 0:02:19]} 13. Bd3 {[%clk 0:01:39]}  Nc5 {[%clk 0:02:10]} 14. Bf1 {[%clk 0:01:37]}  Nc6 {[%clk 0:01:56]} 15. Bxc7 {[%clk 0:01:31]}  Rc8 {[%clk 0:01:48]} 16. Bxf4 {[%clk 0:01:31]}  Nd4 {[%clk 0:01:44]} 17. O-O-O {[%clk 0:01:01]}  Bf5 {[%clk 0:01:30]} 18. Rxd4 {[%clk 0:00:45]}  Nb3+ {[%clk 0:01:30]} 19. Kd1 {[%clk 0:00:38]}  Bxc2+ {[%clk 0:01:25]} 20. Ke1 {[%clk 0:00:37]}  Nxd4 {[%clk 0:01:25]} 21. Ne2 {[%clk 0:00:34]}  Nxe2 {[%clk 0:01:19]} 22. Bxe2 {[%clk 0:00:34]}  Be4 {[%clk 0:01:10]} 23. Bf3 {[%clk 0:00:31]}  Bxf3 {[%clk 0:01:10]} 24. gxf3 {[%clk 0:00:32]}  Rg2 {[%clk 0:01:05]} 25. Be5 {[%clk 0:00:31]}  Rc1# {[%clk 0:01:04]} 0-1


[Site "https://www.chess.com"]

[Event "Titled Tuesday Blitz March 22 Early 2022"]
[White "Shuvalov, Evgenij"]
[Black "Sargsyan, Anna M."]
[WhiteFideId "4187237"]
[BlackFideId "13308130"]
[WhiteElo "2151"]
[BlackElo "2271"]
[Result "0-1"]
[Round "11"]
[TimeControl "180+1"]
[Date "2022.03.22"]
[WhiteClock "0:00:01"]
[BlackClock "0:00:16"]

1. Nf3 {[%clk 0:02:58]}  d5 {[%clk 0:03:00]} 2. c4 {[%clk 0:02:57]}  d4 {[%clk 0:02:59]} 3. b4 {[%clk 0:02:57]}  g5 {[%clk 0:02:59]} 4. Bb2 {[%clk 0:02:56]}  e5 {[%clk 0:02:58]} 5. Nxe5 {[%clk 0:02:51]}  Bg7 {[%clk 0:02:57]} 6. Qa4+ {[%clk 0:02:39]}  c6 {[%clk 0:02:56]} 7. Nd3 {[%clk 0:02:36]}  Ne7 {[%clk 0:02:55]} 8. g3 {[%clk 0:02:24]}  O-O {[%clk 0:02:51]} 9. Bg2 {[%clk 0:02:24]}  Be6 {[%clk 0:02:49]} 10. Na3 {[%clk 0:02:22]}  b6 {[%clk 0:02:46]} 11. b5 {[%clk 0:02:19]}  Qc8 {[%clk 0:02:27]} 12. Rc1 {[%clk 0:02:15]}  a6 {[%clk 0:02:14]} 13. c5 {[%clk 0:01:45]}  cxb5 {[%clk 0:01:48]} 14. Nxb5 {[%clk 0:01:45]}  Bd5 {[%clk 0:01:43]} 15. Bxd5 {[%clk 0:00:52]}  Nxd5 {[%clk 0:01:44]} 16. c6 {[%clk 0:00:45]}  Qh3 {[%clk 0:01:28]} 17. Nxd4 {[%clk 0:00:41]}  Qg2 {[%clk 0:01:26]} 18. Rf1 {[%clk 0:00:39]}  b5 {[%clk 0:01:26]} 19. Qb3 {[%clk 0:00:35]}  Ra7 {[%clk 0:01:11]} 20. Nf5 {[%clk 0:00:31]}  Bxb2 {[%clk 0:01:09]} 21. Qxb2 {[%clk 0:00:32]}  f6 {[%clk 0:01:09]} 22. Qb3 {[%clk 0:00:25]}  Kh8 {[%clk 0:01:04]} 23. f3 {[%clk 0:00:19]}  Nc7 {[%clk 0:00:57]} 24. Nd6 {[%clk 0:00:14]}  Qxh2 {[%clk 0:00:55]} 25. g4 {[%clk 0:00:13]}  Qxd6 {[%clk 0:00:54]} 26. Rh1 {[%clk 0:00:12]}  Nxc6 {[%clk 0:00:48]} 27. Qc3 {[%clk 0:00:10]}  Nd4 {[%clk 0:00:47]} 28. Nc5 {[%clk 0:00:10]}  Nde6 {[%clk 0:00:29]} 29. Ne4 {[%clk 0:00:09]}  Qe5 {[%clk 0:00:28]} 30. Qc6 {[%clk 0:00:07]}  Nd5 {[%clk 0:00:24]} 31. Kf1 {[%clk 0:00:03]}  Rc7 {[%clk 0:00:21]} 32. Qxc7 {[%clk 0:00:02]}  Ndxc7 {[%clk 0:00:20]} 33. Rc6 {[%clk 0:00:02]}  Nd5 {[%clk 0:00:17]} 34. Rxa6 {[%clk 0:00:02]}  Ndf4 {[%clk 0:00:17]} 35. Kf2 {[%clk 0:00:02]}  Nc5 {[%clk 0:00:15]} 36. Ra7 {[%clk 0:00:01]}  Nxe4+ {[%clk 0:00:16]} 37. fxe4 {[%clk 0:00:01]}  Qc5+ {[%clk 0:00:16]} 0-1


[Site "https://www.chess.com"]